bitfinex-derivatives/quotes_SOLF0:USTF0_20241217
["timestamp","ask_amount","ask_price","bid_price","bid_amount"]
[1734461350592,10.08113163,228.69,228.6,1013.44587582]
[1734461350889,10.08113163,228.69,228.62,360.0167299]
[1734461351092,10.08113163,228.69,228.62,366.07438044]
[1734461351293,10.08113163,228.69,228.62,179.93374546]
[1734461351589,10.08113163,228.69,228.61,1246.24735042]
[1734461352193,10.08113163,228.69,228.64,2.1864]
[1734461352791,15.33126289,228.72,228.62,413.66543705]
[1734461352992,15.33126289,228.72,228.67,2.1862]
[1734461353192,15.33126289,228.72,228.64,593.59918251]
[1734461353490,15.33126289,228.72,228.64,773.47196266]
[1734461353691,15.33126289,228.72,228.64,587.48056666]
[1734461353896,15.33126289,228.72,228.64,179.87278015]
[1734461354092,15.33126289,228.72,228.63,1323.66260113]
[1734461354292,15.33126289,228.72,228.63,1255.77709375]
[1734461354595,15.33126289,228.72,228.64,938.16781484]
[1734461354793,15.33126289,228.72,228.64,1217.31127161]
[1734461354991,15.33126289,228.72,228.64,1159.06401567]
[1734461355194,5.25013126,228.72,228.64,1159.06401567]
[1734461355494,5.25013126,228.72,228.65,852.65206261]
[1734461355698,5.25013126,228.72,228.69,2.186]
[1734461357088,10.08113163,228.71,228.67,2.1861]
[1734461357300,10.08113163,228.71,228.66,599.78043877]
[1734461357592,5.25013126,228.72,228.66,239.97391316]
[1734461357593,10.08113163,228.68,228.66,239.97391316]
[1734461357793,12.26723163,228.68,228.66,239.97391316]
[1734461357993,10.08113163,228.68,228.62,179.93374546]
[1734461358193,10.08113163,228.64,228.61,779.8191535]
[1734461358397,2.1867,228.62,228.61,779.8191535]
[1734461358595,2.1867,228.62,228.61,239.97391316]
[1734461358795,10.08113163,228.64,228.55,1172.54962618]
[1734461358992,10.08113163,228.59,228.55,399.07766352]
[1734461359594,10.08113163,228.59,228.56,12.23075655]
[1734461359795,10.08113163,228.59,228.57,4.70413713]
[1734461359992,10.08113163,228.59,228.58,4.70413713]
[1734461360293,10.08113163,228.59,228.53,299.91402241]
[1734461360490,10.08113163,228.56,228.54,2.89180965]
[1734461360694,2.4,228.55,228.47,191.93197882]
[1734461360900,10.08113163,228.49,228.42,775.66046266]
[1734461361096,10.08113163,228.49,228.43,517.90660658]
[1734461361295,10.08113163,228.49,228.43,367.998614]
[1734461361598,10.08113163,228.49,228.43,136.52054896]
[1734461361795,10.08113163,228.49,228.43,134.33204896]
[1734461362094,10.08113163,228.52,228.43,134.33204896]
[1734461362391,10.08113163,228.52,228.43,71.64375945]
[1734461362797,10.08113163,228.49,228.43,71.64375945]
[1734461363193,10.08113163,228.49,228.4,179.93374546]
[1734461363393,10.08113163,228.49,228.38,773.47196266]
[1734461363594,10.08113163,228.49,228.38,593.59918251]
[1734461363789,10.08113163,228.49,228.39,203.4234003]
[1734461363990,10.08113163,228.46,228.37,149.90799258]
[1734461364196,10.08113163,228.43,228.36,3.0206]
[1734461364397,14.64963163,228.43,228.36,3.0206]
[1734461364597,12.46113163,228.43,228.33,593.59918251]
[1734461364894,2.1885,228.44,228.35,2.1892]
[1734461365087,2.38,228.49,228.35,263.75744447]
[1734461365291,2.38,228.49,228.35,413.66543705]
[1734461365494,2.38,228.49,228.38,263.75744447]
[1734461365696,4.5679,228.49,228.41,2.1887]
[1734461366201,2.38,228.49,228.39,2.9278]
[1734461366501,5.31008262,228.44,228.36,143.84415705]
[1734461366799,19.95961425,228.44,228.36,2.1891]
[1734461366994,17.77121425,228.44,228.35,263.75744447]
[1734461367300,17.77121425,228.44,228.37,263.75744447]
[1734461367493,5.31008262,228.44,228.36,317.04450536]
[1734461367698,5.31008262,228.44,228.37,392.45532084]
[1734461367897,5.31008262,228.44,228.37,263.75744447]
[1734461368096,5.31008262,228.44,228.4,2.1888]
[1734461368795,5.31008262,228.44,228.37,143.84415705]
[1734461369000,5.31008262,228.44,228.39,2.1888]
[1734461370097,5.31008262,228.44,228.4,2.1887]
[1734461370900,5.31008262,228.44,228.37,143.84415705]
[1734461371094,5.31008262,228.44,228.39,2.1888]
[1734461371497,5.31008262,228.44,228.39,143.84415705]
[1734461371703,2.38,228.52,228.39,143.84415705]
[1734461371903,5.25354853,228.46,228.4,3.0222]
[1734461373100,7.44174853,228.46,228.4,3.0222]
[1734461373407,5.25354853,228.46,228.42,2.1886]
[1734461374498,5.25354853,228.46,228.4,3.0222]
[1734461374700,10.08113163,228.53,228.4,3.0222]
[1734461374904,2.1876,228.52,228.42,143.84415705]
[1734461375106,5.36024891,228.49,228.42,143.84415705]
[1734461375307,5.36024891,228.49,228.44,2.1884]
[1734461376510,5.36024891,228.49,228.43,2.8543]
[1734461377504,13.11,228.7,228.43,2.8543]
[1734461377809,10.08113163,228.56,228.43,2.8543]
[1734461378010,2.1874,228.54,228.43,146.69845705]
[1734461378313,5.33962296,228.51,228.44,227.664506]
[1734461378512,5.33962296,228.51,228.44,143.84415705]
[1734461378809,2.38,228.56,228.44,143.84415705]
[1734461379013,12.46113163,228.57,228.44,146.22415705]
[1734461379312,12.46113163,228.57,228.48,2.1879]
[1734461379814,26.56772596,228.7,228.51,2.1877]
[1734461380006,10.08113163,228.62,228.49,2.38]
[1734461380203,10.08113163,228.62,228.49,146.22415705]
[1734461380509,10.08113163,228.62,228.49,2.38]
[1734461380811,10.08113163,228.62,228.49,146.22415705]
[1734461381407,2.1871,228.58,228.5,2.1877]
[1734461381907,2.38,228.6,228.49,146.22415705]
[1734461381908,10.08113163,228.62,228.49,146.22415705]
[1734461382207,10.08113163,228.68,228.55,143.84415705]
[1734461382410,10.08113163,228.65,228.55,2.38]
[1734461382709,5.18685924,228.62,228.55,2.38]
[1734461383115,7.37355924,228.62,228.55,4.5673]
[1734461383815,7.37355924,228.62,228.59,2.1869]
[1734461383816,5.18685924,228.62,228.59,2.1869]
[1734461384208,2.38,228.67,228.55,2.38]
[1734461384415,10.08113163,228.71,228.61,2.1867]
[1734461384615,2.38,228.7,228.58,143.84415705]
[1734461384816,2.38,228.7,228.62,2.1866]
[1734461384817,5.12351385,228.66,228.62,2.1866]
[1734461385017,5.12351385,228.66,228.6,146.87905705]
[1734461385216,5.12351385,228.66,228.6,152.28675705]
[1734461385416,2.38,228.7,228.61,227.60554347]
[1734461385619,2.38,228.7,228.61,143.84415705]
[1734461385814,12.46113163,228.74,228.61,143.84415705]
[1734461386013,2.38,228.74,228.61,143.84415705]
[1734461386816,5.34931183,228.69,228.61,143.84415705]
[1734461387017,7.72931183,228.69,228.6,3.0349]
[1734461387220,16.16573638,228.68,228.56,146.22415705]
[1734461388014,2.1864,228.66,228.58,2.1869]
[1734461388226,16.16573638,228.68,228.56,2.38]
[1734461388917,2.1865,228.64,228.56,266.13744447]
[1734461389117,2.1865,228.64,228.56,146.22415705]
[1734461389421,2.1865,228.64,228.56,2.38]
[1734461389914,2.1862,228.67,228.59,2.1868]
[1734461390118,7.72931183,228.69,228.59,2.1868]
[1734461391414,2.1863,228.66,228.59,2.1868]
[1734461391622,16.16573638,228.67,228.53,33.08870904]
[1734461391915,7.72931183,228.69,228.53,6.0259]
[1734461391916,16.16573638,228.63,228.53,6.0259]
[1734461392116,2.38,228.62,228.5,6.05765054]
[1734461392416,2.38,228.62,228.49,24.23440904]
[1734461392719,2.38,228.62,228.48,24.23440904]
[1734461392922,2.1871,228.58,228.49,2.1879]
[1734461393417,2.1872,228.57,228.49,2.1879]
[1734461393722,2.1872,228.57,228.5,4.66456984]
[1734461394025,2.1872,228.56,228.49,2.1879]
[1734461394324,2.38,228.62,228.48,24.23440904]
[1734461394518,2.38,228.62,228.49,4.6657328]
[1734461394519,2.1877,228.51,228.49,4.6657328]
[1734461394713,2.1877,228.51,228.47,8.9081]
[1734461395118,2.1877,228.51,228.47,5.9054]
[1734461395622,2.1879,228.5,228.44,71.82546565]
[1734461395824,2.1879,228.5,228.43,26.42280904]
[1734461396020,16.16573638,228.55,228.43,26.42280904]
[1734461396622,16.16573638,228.55,228.43,2.1884]
[1734461396817,2.1878,228.51,228.43,2.1884]
[1734461397023,2.1878,228.51,228.44,2.1884]
[1734461397627,2.1878,228.5,228.44,2.1884]
[1734461399526,2.4,228.52,228.43,263.75744447]
[1734461399727,2.1877,228.51,228.45,2.1882]
[1734461401322,2.1876,228.52,228.46,4.68163829]
[1734461401522,2.1876,228.52,228.45,2.1882]
[1734461401724,2.4,228.54,228.43,415.85383705]
[1734461402027,2.1879,228.5,228.44,4.68178598]
[1734461402226,5.33588674,228.48,228.45,4.68178598]
[1734461402530,5.33588674,228.48,228.46,4.68178598]
[1734461402730,5.33588674,228.48,228.47,12.18523267]
[1734461402925,5.33588674,228.48,228.47,12.1853642]
[1734461403926,5.33588674,228.48,228.47,13.28005794]
[1734461404229,7.52388674,228.48,228.47,12.1853642]
[1734461404630,7.52388674,228.48,228.47,13.28014066]
[1734461404823,5.33588674,228.48,228.47,13.28014066]
[1734461405627,5.33588674,228.48,228.47,13.28013553]
[1734461405929,5.33588674,228.48,228.47,12.1853642]
[1734461407429,5.33588674,228.48,228.47,12.18743479]
[1734461407726,5.33588674,228.48,228.47,4.68747492]
[1734461407944,7.73588674,228.48,228.39,413.66543705]
[1734461408124,7.73588674,228.48,228.4,1.09492441]
[1734461408427,10.12118719,228.45,228.41,1.09492441]
[1734461408633,2.1887,228.41,228.35,96.25310044]
[1734461408932,10.12118719,228.45,228.34,90.4192599]
[1734461409132,10.12118719,228.42,228.34,0.22381]
[1734461409431,2.58,228.41,228.34,0.22381]
[1734461409633,10.12118719,228.45,228.34,0.22381]
[1734461409831,2.58,228.45,228.34,275.79920113]
[1734461410033,2.58,228.45,228.34,413.88924705]
[1734461410230,4.7684,228.45,228.34,413.88924705]
[1734461410428,2.58,228.45,228.35,475.72438779]
[1734461410631,2.58,228.45,228.35,466.92560432]
[1734461410828,2.58,228.45,228.36,542.38355193]
[1734461411029,2.58,228.45,228.36,466.92560432]
[1734461411533,4.7683,228.45,228.36,413.66543705]
[1734461411938,4.7683,228.45,228.36,263.75744447]
[1734461412430,4.7683,228.45,228.37,595.59026051]
[1734461412634,4.7683,228.45,228.37,53.2462898]
[1734461412830,5.33588674,228.48,228.38,2.58]
[1734461413038,5.33588674,228.48,228.41,413.66543705]
[1734461413431,6.2058,228.66,228.4,16.20313692]
[1734461413432,2.58,228.6,228.43,173.56199457]
[1734461413736,2.58,228.6,228.46,263.75744447]
[1734461414039,16.20313692,228.59,228.46,413.66543705]
[1734461414233,16.20313692,228.55,228.44,413.66543705]
[1734461414433,5.33174121,228.51,228.44,149.90799258]
[1734461414628,5.33174121,228.51,228.4,593.5382172]
[1734461414937,5.33174121,228.51,228.39,419.45283705]
[1734461415128,21.53487813,228.51,228.39,5.7874]
[1734461415327,2.1883,228.46,228.39,347.6273714]
[1734461415730,5.33174121,228.51,228.39,275.60868]
[1734461416239,5.33174121,228.51,228.39,5.7874]
[1734461416431,5.33174121,228.51,228.41,6.00788962]
[1734461416643,5.33174121,228.51,228.41,264.34714363]
[1734461416943,5.33174121,228.51,228.42,392.99066769]
[1734461417143,5.33174121,228.51,228.43,552.05054974]
[1734461417342,5.33174121,228.51,228.43,53.22693741]
[1734461417643,5.33174121,228.51,228.41,264.34714363]
[1734461418237,2.1879,228.49,228.41,264.34714363]
[1734461418438,2.58,228.49,228.4,5.7585]
[1734461418634,2.58,228.49,228.38,3.0126]
[1734461418842,2.1884,228.45,228.38,3.0126]
[1734461419039,2.58,228.49,228.38,267.35974363]
[1734461419243,2.58,228.49,228.38,3.0126]
[1734461419439,4.768,228.49,228.39,2.1889]
[1734461419640,7.91174121,228.51,228.39,266.53604363]
[1734461420042,7.91174121,228.51,228.39,72.09467552]
[1734461420238,7.91174121,228.51,228.4,2.1887]
[1734461421143,2.1878,228.5,228.41,123.15339225]
[1734461421339,2.1878,228.5,228.41,2.1886]
[1734461421543,7.91174121,228.51,228.4,144.18935106]
[1734461422343,7.91174121,228.51,228.39,144.18935106]
[1734461422643,16.20313692,228.5,228.39,96.12623404]
[1734461422837,16.20313692,228.5,228.38,147.20195106]
[1734461423043,16.20313692,228.5,228.38,3.0126]
[1734461423942,2.1885,228.43,228.38,3.0126]
[1734461424143,2.58,228.45,228.35,414.54438434]
[1734461424337,2.58,228.44,228.34,414.76819434]
[1734461424536,2.1889,228.39,228.34,0.22381]
[1734461424737,2.58,228.43,228.34,0.22381]
[1734461425843,2.1886,228.42,228.34,0.22381]
[1734461426336,4.7685,228.43,228.34,18.24747888]
[1734461426542,2.1885,228.43,228.34,417.34819434]
[1734461426740,2.1885,228.43,228.34,597.58488319]
[1734461426939,2.1885,228.43,228.34,599.77408319]
[1734461427445,2.1885,228.43,228.35,921.53697546]
[1734461427746,2.1885,228.43,228.35,553.76560159]
[1734461427943,2.1887,228.41,228.35,498.53925191]
[1734461428145,16.20313692,228.46,228.35,138.06587421]
[1734461428342,16.20313692,228.46,228.35,73.63513291]
[1734461428548,2.1892,228.35,228.34,240.53939514]
[1734461428741,2.58,228.37,228.29,420.55227399]
[1734461428945,18.78313692,228.38,228.29,420.55227399]
[1734461429147,2.58,228.37,228.29,240.31558514]
[1734461430551,2.1894,228.34,228.29,240.31558514]
[1734461433053,2.58,228.37,228.29,240.31558514]
[1734461433248,2.58,228.37,228.3,1.09532082]
[1734461433442,15.46856502,228.38,228.31,1.09532082]
[1734461433652,7.52249384,228.38,228.32,1.09532082]
[1734461433948,7.52249384,228.38,228.33,1.09532082]
[1734461434147,7.52249384,228.38,228.3,6.0482]
[1734461434357,5.33349384,228.38,228.31,5.79415503]
[1734461434551,5.33349384,228.38,228.32,2.84785503]
[1734461434851,2.58,228.42,228.35,2.1892]
[1734461435060,4.7686,228.42,228.36,2.84785503]
[1734461435249,4.7686,228.42,228.37,2.84785503]
[1734461435445,4.7686,228.42,228.38,2.84785503]
[1734461435650,4.7686,228.42,228.39,1.09532886]
[1734461435853,4.7686,228.42,228.4,1.09532886]
[1734461436152,2.1887,228.41,228.34,595.03391111]
[1734461436451,10.13507118,228.4,228.35,2.84742774]
[1734461436652,10.13507118,228.4,228.36,2.84742774]
[1734461436848,10.13507118,228.4,228.37,1.09514149]
[1734461437048,2.1889,228.39,228.38,1.09514149]
[1734461437252,2.1889,228.39,228.38,2.84748617]
[1734461437450,2.1889,228.39,228.38,1.09514149]
[1734461438256,10.13507118,228.4,228.31,363.4196777]
[1734461438457,10.13507118,228.4,228.31,183.18298885]
[1734461438751,10.13507118,228.4,228.31,2.9463]
[1734461439352,2.1891,228.37,228.31,2.9463]
[1734461439947,2.1895,228.32,228.31,2.9463]
[1734461440254,10.13507118,228.34,228.26,775.27059996]
[1734461440455,10.13507118,228.34,228.26,180.23668885]
[1734461440653,2.1897,228.31,228.26,180.23668885]
[1734461440854,2.1897,228.31,228.25,420.55227399]
[1734461441155,2.1899,228.29,228.25,240.31558514]
[1734461441356,10.13507118,228.31,228.24,189.21518885]
[1734461441655,10.13507118,228.31,228.24,8.9785]
[1734461441852,2.1898,228.29,228.24,8.9785]
[1734461442154,2.56,228.35,228.24,6.0662]
[1734461442155,16.22712159,228.32,228.24,6.0662]
[1734461443148,2.1897,228.3,228.24,6.0662]
[1734461443353,18.78712159,228.35,228.24,6.0662]
[1734461443755,2.19,228.28,228.24,6.0662]
[1734461443951,16.22712159,228.31,228.2,595.03391111]
[1734461444251,2.1905,228.22,228.19,360.4733777]
[1734461444454,2.56,228.25,228.18,120.15779257]
[1734461444653,16.22712159,228.31,228.17,655.1128074]
[1734461444853,2.1898,228.29,228.21,2.1905]
[1734461445054,4.7498,228.29,228.21,2.1905]
[1734461445450,2.56,228.29,228.21,2.1905]
[1734461445851,16.22712159,228.35,228.21,2.1905]
[1734461446055,2.56,228.34,228.21,2.1905]
[1734461446757,2.1897,228.31,228.21,2.1905]
[1734461446958,2.56,228.34,228.21,2.1905]
[1734461447156,2.56,228.34,228.2,414.79722226]
[1734461447458,2.19,228.28,228.2,595.03391111]
[1734461447762,5.19901259,228.25,228.2,180.23668885]
[1734461447963,5.19901259,228.25,228.19,595.03391111]
[1734461448160,5.19901259,228.25,228.2,2.1907]
[1734461448661,7.38931259,228.25,228.19,595.03391111]
[1734461448853,7.38931259,228.25,228.18,595.03391111]
[1734461449057,5.19901259,228.25,228.18,414.79722226]
[1734461449257,5.19901259,228.25,228.2,2.1907]
[1734461449457,5.19901259,228.25,228.19,414.79722226]
[1734461449761,2.56,228.29,228.19,595.03391111]
[1734461449963,5.16527532,228.27,228.19,595.03391111]
[1734461450157,5.16527532,228.27,228.19,180.23668885]
[1734461450358,2.1904,228.23,228.18,180.23668885]
[1734461450560,2.1904,228.23,228.16,5.8057]
[1734461450863,5.16527532,228.27,228.22,2.1905]
[1734461451266,5.16527532,228.27,228.19,595.03391111]
[1734461451564,7.35537532,228.27,228.19,597.22461111]
[1734461452162,2.1901,228.26,228.19,597.22461111]
[1734461452362,5.16527532,228.27,228.19,595.03391111]
[1734461452663,5.16527532,228.27,228.18,182.42748885]
[1734461452963,5.16527532,228.27,228.18,2.1908]
[1734461453462,21.39239691,228.27,228.17,595.03391111]
[1734461453759,21.39239691,228.27,228.17,180.23668885]
[1734461453961,16.22712159,228.19,228.14,91.10754239]
[1734461454173,16.22712159,228.14,228.05,150.19724071]
[1734461454463,2.56,228.13,227.98,420.94552226]
[1734461454765,2.56,228.13,227.98,6.1483]
[1734461454962,2.1925,228.02,227.98,6.1483]
[1734461455364,2.1925,228.02,227.81,316.62160301]
[1734461455365,16.22712159,228.01,227.88,300.39448142]
[1734461455563,16.22712159,228.01,227.89,6.1909]
[1734461455767,16.22712159,228.05,227.89,6.1909]
[1734461455962,2.56,228.04,227.89,8.7509]
[1734461456162,4.7523,228.04,227.92,2.1933]
[1734461456367,4.7523,228.04,227.93,2.9999]
[1734461456563,2.56,228.04,227.93,2.9999]
[1734461457069,2.56,228.06,227.93,2.9999]
[1734461457565,5.37334891,228.03,227.93,2.9999]
[1734461457761,5.37334891,228.03,227.94,2.1931]
[1734461457964,2.56,228.06,227.93,2.9999]
[1734461458972,5.38914978,228.05,227.93,2.9999]
[1734461459566,2.1927,227.99,227.93,2.9999]
[1734461459766,5.38914978,228.05,227.93,2.9999]
[1734461461464,2.1926,228.0,227.93,2.9999]
[1734461461663,5.38914978,228.05,227.93,2.9999]
[1734461463871,5.38914978,228.05,227.89,6.1909]
[1734461464376,2.1929,227.97,227.89,6.1909]
[1734461465041,2.1929,227.97,227.89,8.3846]
[1734461465204,2.56,227.99,227.89,6.1909]
[1734461465689,2.56,228.01,227.91,2.1934]
[1734461466296,2.1926,228.0,227.91,2.1934]
[1734461467305,2.1927,227.99,227.91,2.1934]
[1734461467604,2.56,228.01,227.92,2.1933]
[1734461467996,2.56,228.02,227.92,2.1933]
[1734461468593,2.56,228.02,227.89,6.1909]
[1734461468793,2.56,228.02,227.93,2.1933]
[1734461469693,2.56,228.02,227.94,2.1932]
[1734461470206,4.7524,228.02,227.94,2.1931]
[1734461470399,4.7524,228.02,227.89,6.1909]
[1734461470400,18.78712159,228.02,227.89,6.1909]
[1734461470700,2.56,228.01,227.89,6.1909]
[1734461472500,2.1929,227.97,227.89,8.3846]
[1734461472895,2.56,228.01,227.89,6.1909]
[1734461473101,2.193,227.97,227.89,6.1909]
[1734461473299,2.56,228.01,227.89,6.1909]
[1734461473888,16.22712159,228.02,227.89,6.1909]
[1734461474099,2.56,228.0,227.89,6.1909]
[1734461474781,16.22712159,227.98,227.89,6.1909]
[1734461475088,2.1937,227.89,227.83,6.1748]
[1734461475290,16.22712159,227.9,227.74,5.17659352]
[1734461475494,2.194,227.86,227.71,22.16712159]
[1734461475786,2.56,227.89,227.77,2.1947]
[1734461475973,2.56,227.89,227.71,24.72712159]
[1734461476280,2.56,227.89,227.73,10.18037849]
[1734461476281,10.18037849,227.87,227.73,10.18037849]
[1734461476481,10.18037849,227.87,227.75,2.195]
[1734461476879,2.1942,227.84,227.76,2.1949]
[1734461477085,10.18037849,227.84,227.74,2.8694]
[1734461477291,2.1944,227.82,227.74,2.8694]
[1734461477482,2.82,227.83,227.74,2.8694]
[1734461478179,2.1944,227.82,227.74,2.8694]
[1734461478381,2.82,227.83,227.74,2.8694]
[1734461478775,2.82,227.83,227.71,5.94]
[1734461478776,2.1945,227.8,227.71,5.94]
[1734461479084,16.29518208,227.8,227.71,5.94]
[1734461479982,2.195,227.75,227.71,5.94]
[1734461480176,2.82,227.76,227.6,16.29518208]
[1734461480478,2.1953,227.73,227.58,5.902]
[1734461480675,5.24710502,227.8,227.64,16.29518208]
[1734461480876,5.24710502,227.8,227.74,2.1951]
[1734461482181,5.24710502,227.8,227.69,8.7706]
[1734461482779,2.82,227.86,227.72,16.29518208]
[1734461482984,5.0139,227.87,227.73,2.82]
[1734461483582,2.82,227.87,227.69,8.7706]
[1734461483782,2.1941,227.85,227.76,2.1949]
[1734461483983,2.82,227.87,227.7,19.11518208]
[1734461484884,2.82,227.87,227.74,16.29518208]
[1734461485377,2.82,227.89,227.74,16.29518208]
[1734461485578,5.14919298,227.92,227.85,2.194]
[1734461485783,5.14919298,227.92,227.86,5.7441]
[1734461486280,21.44437506,227.92,227.86,5.7441]
[1734461486481,21.44437506,227.92,227.8,5.1566]
[1734461486482,5.14919298,227.92,227.8,2.9622]
[1734461486680,5.14919298,227.92,227.86,2.1939]
[1734461486885,5.14919298,227.92,227.81,5.7441]
[1734461488782,7.34259298,227.92,227.81,5.7441]
[1734461489183,2.82,227.97,227.81,5.7441]
[1734461489485,2.82,228.0,227.83,16.29518208]
[1734461489788,2.1928,227.98,227.92,2.1934]
[1734461489979,5.34766126,228.0,227.9,2.82]
[1734461490176,5.34766126,228.0,227.88,2.82]
[1734461490780,2.1929,227.97,227.9,2.1935]
[1734461491085,5.34766126,228.0,227.81,5.7441]
[1734461491292,2.1932,227.94,227.87,2.1938]
[1734461491691,5.34766126,228.0,227.84,2.82]
[1734461491996,2.1929,227.97,227.89,2.1936]
[1734461492486,5.34766126,228.0,227.84,2.82]
[1734461493088,2.193,227.97,227.89,2.1936]
[1734461493290,5.34766126,228.0,227.9,2.815]
[1734461493486,5.34766126,228.0,227.91,5.7799]
[1734461493690,2.1928,227.98,227.91,7.9734]
[1734461494082,5.34766126,228.0,227.91,5.7799]
[1734461494995,2.1928,227.99,227.91,5.7799]
[1734461495891,7.54026126,228.0,227.92,2.1934]
[1734461496290,5.34766126,228.0,227.91,5.7799]
[1734461496493,16.29518208,227.96,227.78,16.29518208]
[1734461496696,19.11518208,227.96,227.83,3.1084]
[1734461496997,19.11518208,227.96,227.84,2.1941]
[1734461496998,2.1934,227.92,227.84,2.1941]
[1734461497190,2.1934,227.92,227.83,3.1084]
[1734461497897,19.11518208,227.96,227.83,3.1084]
[1734461498191,19.11518208,227.96,227.85,72.24169442]
[1734461498393,24.46284334,228.0,227.85,72.24169442]
[1734461498593,24.46284334,228.0,227.86,94.25111598]
[1734461498792,24.46284334,228.0,227.86,72.24169442]
[1734461498995,24.46284334,228.0,227.86,144.47559155]
[1734461499201,24.46284334,228.0,227.84,72.24169442]
[1734461499397,24.46284334,228.0,227.85,228.18725945]
[1734461499698,24.46284334,228.0,227.85,72.24169442]
[1734461499898,2.1932,227.94,227.87,2.1938]
[1734461500797,2.1932,227.94,227.86,2.1939]
[1734461501200,2.1931,227.95,227.87,2.1938]
[1734461501492,10.17251173,227.96,227.84,72.24169442]
[1734461501899,2.1933,227.93,227.85,2.194]
[1734461502299,10.17251173,227.96,227.84,415.35270579]
[1734461502696,2.1933,227.93,227.86,2.1939]
[1734461503900,10.17251173,227.93,227.83,418.46110579]
[1734461504101,10.17251173,227.9,227.83,3.1084]
[1734461504396,10.17251173,227.87,227.79,418.16580579]
[1734461504602,10.17251173,227.87,227.79,2.8131]
[1734461505199,2.82,227.86,227.79,2.8131]
[1734461505405,2.1943,227.83,227.75,418.37050579]
[1734461505600,10.17251173,227.79,227.75,415.35270579]
[1734461505900,10.17251173,227.76,227.71,415.35270579]
[1734461506103,2.1951,227.75,227.71,415.35270579]
[1734461506302,12.99251173,227.79,227.71,72.23389713]
[1734461506503,12.99251173,227.79,227.69,120.38982855]
[1734461506711,10.17251173,227.76,227.7,4.54165077]
[1734461506904,10.17251173,227.76,227.68,415.35270579]
[1734461507100,2.1949,227.76,227.69,280.74007431]
[1734461507300,12.99251173,227.79,227.7,4.54167505]
[1734461507503,12.99251173,227.79,227.71,4.54167505]
[1734461507807,15.18721173,227.79,227.72,4.54024905]
[1734461508004,5.37887042,227.86,227.73,4.54024905]
[1734461508312,2.1943,227.83,227.74,59.70993696]
[1734461508499,2.1943,227.83,227.75,4.54024905]
[1734461508702,2.1943,227.83,227.74,2.1951]
[1734461508909,2.1943,227.83,227.74,267.0605201]
[1734461509108,2.1944,227.81,227.74,264.8654201]
[1734461509405,2.76,227.85,227.75,596.3330821]
[1734461509608,4.9541,227.85,227.76,2.1949]
[1734461509798,2.1941,227.85,227.76,264.8654201]
[1734461510001,2.1941,227.85,227.77,5.8322]
[1734461510698,5.37887042,227.86,227.77,5.8322]
[1734461510907,16.29875173,227.96,227.8,144.47559155]
[1734461511111,16.29875173,227.96,227.82,264.8654201]
[1734461511609,16.29875173,227.96,227.81,264.8654201]
[1734461511807,2.1934,227.92,227.83,2.1941]
[1734461512709,16.29875173,227.96,227.82,267.8642201]
[1734461512909,2.1933,227.93,227.85,2.194]
[1734461513306,2.1933,227.93,227.82,267.8642201]
[1734461513307,5.37676272,227.93,227.84,72.24169442]
[1734461513611,5.37676272,227.93,227.86,2.194]
[1734461514719,5.37676272,227.93,227.87,2.1938]
[1734461515121,5.37676272,227.93,227.88,2.8149]
[1734461515419,2.193,227.97,227.88,2.8149]
[1734461515712,2.76,227.98,227.89,2.8347]
[1734461516421,2.193,227.96,227.89,5.0284]
[1734461516617,2.76,227.98,227.89,2.8347]
[1734461517016,2.76,227.99,227.89,2.8347]
[1734461517418,2.1929,227.98,227.9,2.1936]
[1734461518825,5.17357698,227.96,227.9,2.1936]
[1734461519722,5.17357698,227.96,227.89,2.8347]
[1734461520031,5.17357698,227.96,227.89,5.0284]
[1734461521114,5.17357698,227.96,227.9,2.1935]
[1734461522821,21.47232871,227.96,227.89,2.8347]
[1734461523012,21.47232871,227.96,227.88,2.8149]
[1734461523215,2.1932,227.94,227.88,2.8149]
[1734461523414,21.47232871,227.96,227.88,2.8149]
[1734461523821,2.1934,227.92,227.88,2.8149]
[1734461524015,21.47232871,227.96,227.88,2.8149]
[1734461524822,5.17357698,227.96,227.88,2.8149]
[1734461525423,5.17357698,227.96,227.89,2.1937]
[1734461525629,21.47232871,227.96,227.88,2.8149]
[1734461526424,2.1934,227.92,227.88,2.8149]
[1734461528522,2.1937,227.9,227.88,2.8149]